[Event "Titled Tuesday Blitz March 14 Early 2023"]
[White "Allam, Yara"]
[Black "Sanchez, Robert"]
[WhiteFideId "10615709"]
[BlackFideId "2034360"]
[WhiteElo "1758"]
[BlackElo "2233"]
[Result "1-0"]
[Round "06"]
[TimeControl "180+2"]
[Date "2023.03.14"]
[WhiteClock "0:00:23"]
[BlackClock "0:01:43"]

1. e4 {[%clk 0:03:00]}  e6 {[%clk 0:03:00]} 2. d4 {[%clk 0:03:00]}  d5 {[%clk 0:03:00]} 3. Nc3 {[%clk 0:03:01]}  Nf6 {[%clk 0:03:00]} 4. e5 {[%clk 0:03:01]}  Ne4 {[%clk 0:03:01]} 5. Nxe4 {[%clk 0:03:01]}  dxe4 {[%clk 0:03:01]} 6. c3 {[%clk 0:02:58]}  c5 {[%clk 0:03:00]} 7. Be3 {[%clk 0:02:57]}  Nc6 {[%clk 0:02:56]} 8. Bb5 {[%clk 0:02:55]}  Bd7 {[%clk 0:02:56]} 9. Bxc6 {[%clk 0:02:47]}  Bxc6 {[%clk 0:02:55]} 10. dxc5 {[%clk 0:02:46]}  Qc7 {[%clk 0:02:53]} 11. Qh5 {[%clk 0:02:29]}  g6 {[%clk 0:02:47]} 12. Qg5 {[%clk 0:02:25]}  Be7 {[%clk 0:02:42]} 13. Qg3 {[%clk 0:02:24]}  O-O-O {[%clk 0:02:34]} 14. Ne2 {[%clk 0:02:22]}  h5 {[%clk 0:02:34]} 15. h4 {[%clk 0:02:08]}  Bb5 {[%clk 0:02:33]} 16. Nd4 {[%clk 0:02:00]}  Bd3 {[%clk 0:02:29]} 17. c6 {[%clk 0:01:50]}  bxc6 {[%clk 0:02:27]} 18. Qf4 {[%clk 0:01:21]}  c5 {[%clk 0:02:19]} 19. Nb3 {[%clk 0:01:07]}  Rhf8 {[%clk 0:02:18]} 20. Bd2 {[%clk 0:00:59]}  a5 {[%clk 0:02:12]} 21. Nc1 {[%clk 0:00:54]}  Ba6 {[%clk 0:02:10]} 22. b3 {[%clk 0:00:53]}  Qd7 {[%clk 0:02:04]} 23. Qe3 {[%clk 0:00:41]}  Kb8 {[%clk 0:02:00]} 24. c4 {[%clk 0:00:37]}  a4 {[%clk 0:01:58]} 25. Ne2 {[%clk 0:00:34]}  f5 {[%clk 0:01:56]} 26. O-O-O {[%clk 0:00:28]}  axb3 {[%clk 0:01:54]} 27. Qxb3+ {[%clk 0:00:25]}  Qb7 {[%clk 0:01:54]} 28. Qxb7+ {[%clk 0:00:25]}  Bxb7 {[%clk 0:01:55]} 29. Ba5 {[%clk 0:00:24]}  Rxd1+ {[%clk 0:01:47]} 30. Rxd1 {[%clk 0:00:24]}  Bxh4 {[%clk 0:01:47]} 31. g3 {[%clk 0:00:24]}  Be7 {[%clk 0:01:47]} 32. Rd7 {[%clk 0:00:24]}  Re8 {[%clk 0:01:43]} 33. Bc7+ {[%clk 0:00:23]}  Kc8 {[%clk 0:01:43]} 1-0


[Site "https://www.chess.com"]

[Event "Titled Tuesday Blitz March 14 Early 2023"]
[White "Wei, Yi"]
[Black "Matlakov, Maxim"]
[WhiteFideId "8603405"]
[BlackFideId "4168003"]
[WhiteElo "2686"]
[BlackElo "2666"]
[Result "0-1"]
[Round "07"]
[TimeControl "180+2"]
[Date "2023.03.14"]
[WhiteClock "0:00:01"]
[BlackClock "0:00:10"]

1. c4 {[%clk 0:02:59]}  e6 {[%clk 0:02:56]} 2. Nc3 {[%clk 0:02:57]}  d5 {[%clk 0:02:56]} 3. d4 {[%clk 0:02:56]}  Nf6 {[%clk 0:02:56]} 4. cxd5 {[%clk 0:02:56]}  exd5 {[%clk 0:02:57]} 5. Bg5 {[%clk 0:02:57]}  c6 {[%clk 0:02:57]} 6. e3 {[%clk 0:02:56]}  h6 {[%clk 0:02:57]} 7. Bh4 {[%clk 0:02:56]}  Be7 {[%clk 0:02:58]} 8. Bd3 {[%clk 0:02:56]}  O-O {[%clk 0:02:58]} 9. Nge2 {[%clk 0:02:54]}  Nbd7 {[%clk 0:02:58]} 10. Qc2 {[%clk 0:02:53]}  Re8 {[%clk 0:02:56]} 11. O-O {[%clk 0:02:51]}  Nh5 {[%clk 0:02:55]} 12. Bxe7 {[%clk 0:02:46]}  Qxe7 {[%clk 0:02:56]} 13. Rae1 {[%clk 0:02:46]}  Ndf6 {[%clk 0:02:54]} 14. Nc1 {[%clk 0:02:36]}  g6 {[%clk 0:02:35]} 15. Nb3 {[%clk 0:02:25]}  Ng4 {[%clk 0:02:21]} 16. h3 {[%clk 0:02:06]}  Ngf6 {[%clk 0:02:21]} 17. e4 {[%clk 0:01:41]}  Nf4 {[%clk 0:02:15]} 18. exd5 {[%clk 0:01:30]}  Qxe1 {[%clk 0:02:10]} 19. Rxe1 {[%clk 0:01:30]}  Rxe1+ {[%clk 0:02:11]} 20. Kh2 {[%clk 0:01:31]}  N6xd5 {[%clk 0:01:46]} 21. Nxd5 {[%clk 0:01:28]}  cxd5 {[%clk 0:01:47]} 22. Bb5 {[%clk 0:01:18]}  Nh5 {[%clk 0:00:54]} 23. Qc7 {[%clk 0:01:07]}  Nf6 {[%clk 0:00:39]} 24. Nc5 {[%clk 0:01:02]}  a6 {[%clk 0:00:37]} 25. Ba4 {[%clk 0:00:50]}  Kg7 {[%clk 0:00:31]} 26. Bb3 {[%clk 0:00:35]}  Re2 {[%clk 0:00:30]} 27. Nd3 {[%clk 0:00:31]}  Bf5 {[%clk 0:00:25]} 28. Ne5 {[%clk 0:00:16]}  Be6 {[%clk 0:00:26]} 29. Qxb7 {[%clk 0:00:15]}  Rf8 {[%clk 0:00:23]} 30. f3 {[%clk 0:00:16]}  Rxb2 {[%clk 0:00:23]} 31. Qxa6 {[%clk 0:00:16]}  Nh5 {[%clk 0:00:22]} 32. Qa3 {[%clk 0:00:06]}  Re2 {[%clk 0:00:22]} 33. Nd3 {[%clk 0:00:03]}  Bf5 {[%clk 0:00:21]} 34. Bxd5 {[%clk 0:00:03]}  Bxd3 {[%clk 0:00:19]} 35. Qxd3 {[%clk 0:00:02]}  Rxg2+ {[%clk 0:00:18]} 36. Kh1 {[%clk 0:00:03]}  Nf4 {[%clk 0:00:16]} 37. Qe4 {[%clk 0:00:03]}  g5 {[%clk 0:00:15]} 38. Qe5+ {[%clk 0:00:03]}  Kg8 {[%clk 0:00:15]} 39. Bc4 {[%clk 0:00:02]}  Rc2 {[%clk 0:00:13]} 40. Bb3 {[%clk 0:00:02]}  Rd2 {[%clk 0:00:13]} 41. Qe3 {[%clk 0:00:02]}  Re2 {[%clk 0:00:13]} 42. Qc3 {[%clk 0:00:01]}  Rfe8 {[%clk 0:00:13]} 43. Bc4 {[%clk 0:00:02]}  Rf2 {[%clk 0:00:11]} 44. Bb3 {[%clk 0:00:01]}  Ree2 {[%clk 0:00:10]} 45. Qc8+ {[%clk 0:00:01]}  Kg7 {[%clk 0:00:10]} 0-1


[Site "https://www.chess.com"]

[Event "Titled Tuesday Blitz March 14 Early 2023"]
[White "Yu, Yangyi"]
[Black "So, Wesley"]
[WhiteFideId "8603820"]
[BlackFideId "5202213"]
[WhiteElo "2783"]
[BlackElo "2739"]
[Result "1-0"]
[Round "07"]
[TimeControl "180+2"]
[Date "2023.03.14"]
[WhiteClock "0:00:25"]
[BlackClock "0:00:10"]

1. Nf3 {[%clk 0:03:00]}  d5 {[%clk 0:02:58]} 2. d4 {[%clk 0:02:56]}  Nf6 {[%clk 0:02:59]} 3. c4 {[%clk 0:02:56]}  e6 {[%clk 0:02:59]} 4. Nc3 {[%clk 0:02:55]}  Be7 {[%clk 0:02:59]} 5. Bf4 {[%clk 0:02:52]}  O-O {[%clk 0:02:59]} 6. e3 {[%clk 0:02:52]}  Nbd7 {[%clk 0:02:54]} 7. a3 {[%clk 0:02:48]}  c6 {[%clk 0:02:48]} 8. h3 {[%clk 0:02:43]}  dxc4 {[%clk 0:02:35]} 9. Bxc4 {[%clk 0:02:42]}  b5 {[%clk 0:02:36]} 10. Bd3 {[%clk 0:02:39]}  a6 {[%clk 0:02:26]} 11. Ne4 {[%clk 0:02:07]}  c5 {[%clk 0:02:05]} 12. dxc5 {[%clk 0:02:02]}  Nxc5 {[%clk 0:01:50]} 13. Nxc5 {[%clk 0:02:02]}  Bxc5 {[%clk 0:01:50]} 14. Rc1 {[%clk 0:01:50]}  Qe7 {[%clk 0:01:35]} 15. b4 {[%clk 0:01:42]}  Bb6 {[%clk 0:01:18]} 16. Bd6 {[%clk 0:01:42]}  Qe8 {[%clk 0:01:09]} 17. Bxf8 {[%clk 0:01:29]}  Qxf8 {[%clk 0:01:10]} 18. O-O {[%clk 0:01:07]}  Bb7 {[%clk 0:01:10]} 19. Qe2 {[%clk 0:01:07]}  Re8 {[%clk 0:00:55]} 20. Rfd1 {[%clk 0:00:58]}  e5 {[%clk 0:00:55]} 21. Bb1 {[%clk 0:00:58]}  g6 {[%clk 0:00:48]} 22. Ba2 {[%clk 0:00:54]}  h6 {[%clk 0:00:35]} 23. Qd3 {[%clk 0:00:41]}  e4 {[%clk 0:00:15]} 24. Qd6 {[%clk 0:00:41]}  Bd8 {[%clk 0:00:15]} 25. Ne5 {[%clk 0:00:33]}  Qxd6 {[%clk 0:00:12]} 26. Rxd6 {[%clk 0:00:31]}  Kg7 {[%clk 0:00:10]} 27. Nxf7 {[%clk 0:00:25]} 1-0


[Site "https://www.chess.com"]

[Event "Titled Tuesday Blitz March 14 Early 2023"]
[White "Nakamura, Hikaru"]
[Black "Nguyen, Ngoc Truong Son"]
[WhiteFideId "2016192"]
[BlackFideId "12401110"]
[WhiteElo "2879"]
[BlackElo "2571"]
[Result "1-0"]
[Round "07"]
[TimeControl "180+2"]
[Date "2023.03.14"]
[WhiteClock "0:00:18"]
[BlackClock "0:00:06"]

1. Nf3 {[%clk 0:03:00]}  Nf6 {[%clk 0:02:58]} 2. b3 {[%clk 0:03:00]}  g6 {[%clk 0:02:55]} 3. Bb2 {[%clk 0:02:59]}  Bg7 {[%clk 0:02:55]} 4. d4 {[%clk 0:02:59]}  O-O {[%clk 0:02:54]} 5. e3 {[%clk 0:02:59]}  d6 {[%clk 0:02:52]} 6. Be2 {[%clk 0:02:59]}  Re8 {[%clk 0:02:49]} 7. O-O {[%clk 0:02:59]}  Nbd7 {[%clk 0:02:49]} 8. c4 {[%clk 0:03:00]}  c6 {[%clk 0:02:42]} 9. b4 {[%clk 0:03:00]}  Qc7 {[%clk 0:02:40]} 10. c5 {[%clk 0:03:00]}  Nd5 {[%clk 0:02:34]} 11. Qd2 {[%clk 0:02:46]}  a5 {[%clk 0:02:31]} 12. cxd6 {[%clk 0:02:42]}  exd6 {[%clk 0:02:32]} 13. b5 {[%clk 0:02:37]}  N7f6 {[%clk 0:02:30]} 14. Nc3 {[%clk 0:02:33]}  Nxc3 {[%clk 0:02:21]} 15. Qxc3 {[%clk 0:02:33]}  Nd5 {[%clk 0:02:08]} 16. Qd2 {[%clk 0:02:31]}  a4 {[%clk 0:02:01]} 17. Ba3 {[%clk 0:02:26]}  Qd7 {[%clk 0:01:15]} 18. bxc6 {[%clk 0:02:19]}  bxc6 {[%clk 0:01:16]} 19. Rac1 {[%clk 0:02:11]}  Ba6 {[%clk 0:01:16]} 20. Bxa6 {[%clk 0:02:09]}  Rxa6 {[%clk 0:01:17]} 21. Rc4 {[%clk 0:01:56]}  h6 {[%clk 0:01:14]} 22. Rfc1 {[%clk 0:01:56]}  Nc7 {[%clk 0:00:54]} 23. h3 {[%clk 0:01:51]}  Nb5 {[%clk 0:00:52]} 24. Bb4 {[%clk 0:01:51]}  a3 {[%clk 0:00:48]} 25. Qd3 {[%clk 0:01:50]}  Ra4 {[%clk 0:00:42]} 26. Bd2 {[%clk 0:01:38]}  Rxc4 {[%clk 0:00:41]} 27. Rxc4 {[%clk 0:01:35]}  Ra8 {[%clk 0:00:36]} 28. Ne1 {[%clk 0:01:28]}  d5 {[%clk 0:00:26]} 29. Rc1 {[%clk 0:01:27]}  Nd6 {[%clk 0:00:25]} 30. Qc2 {[%clk 0:01:23]}  Nc4 {[%clk 0:00:24]} 31. Rb1 {[%clk 0:01:23]}  Bf8 {[%clk 0:00:23]} 32. Rb3 {[%clk 0:01:17]}  Ra7 {[%clk 0:00:22]} 33. Nd3 {[%clk 0:01:15]}  Rb7 {[%clk 0:00:22]} 34. Bc1 {[%clk 0:01:00]}  Bd6 {[%clk 0:00:17]} 35. Qb1 {[%clk 0:00:55]}  Na5 {[%clk 0:00:16]} 36. Rxb7 {[%clk 0:00:53]}  Qxb7 {[%clk 0:00:17]} 37. Qxb7 {[%clk 0:00:53]}  Nxb7 {[%clk 0:00:18]} 38. Bd2 {[%clk 0:00:51]}  c5 {[%clk 0:00:17]} 39. dxc5 {[%clk 0:00:49]}  Nxc5 {[%clk 0:00:18]} 40. Nxc5 {[%clk 0:00:45]}  Bxc5 {[%clk 0:00:19]} 41. Kf1 {[%clk 0:00:45]}  f5 {[%clk 0:00:19]} 42. Ke2 {[%clk 0:00:45]}  Kf7 {[%clk 0:00:18]} 43. Kd3 {[%clk 0:00:46]}  Ke6 {[%clk 0:00:18]} 44. f3 {[%clk 0:00:46]}  h5 {[%clk 0:00:18]} 45. Bc3 {[%clk 0:00:43]}  Kd6 {[%clk 0:00:17]} 46. Bg7 {[%clk 0:00:42]}  Kc6 {[%clk 0:00:17]} 47. Bd4 {[%clk 0:00:30]}  Bb4 {[%clk 0:00:16]} 48. Kc2 {[%clk 0:00:29]}  Kb5 {[%clk 0:00:16]} 49. Kb3 {[%clk 0:00:30]}  Bd6 {[%clk 0:00:16]} 50. Bc3 {[%clk 0:00:30]}  Bc5 {[%clk 0:00:16]} 51. Bd2 {[%clk 0:00:30]}  Kc6 {[%clk 0:00:16]} 52. Bc1 {[%clk 0:00:31]}  Kb5 {[%clk 0:00:16]} 53. Bxa3 {[%clk 0:00:31]}  Bxe3 {[%clk 0:00:17]} 54. Bb2 {[%clk 0:00:31]}  d4 {[%clk 0:00:17]} 55. a4+ {[%clk 0:00:31]}  Kc5 {[%clk 0:00:17]} 56. Ba3+ {[%clk 0:00:30]}  Kd5 {[%clk 0:00:17]} 57. Bb4 {[%clk 0:00:27]}  d3 {[%clk 0:00:18]} 58. Kc3 {[%clk 0:00:26]}  d2 {[%clk 0:00:12]} 59. Kc2 {[%clk 0:00:27]}  Kc4 {[%clk 0:00:09]} 60. Bxd2 {[%clk 0:00:27]}  Bd4 {[%clk 0:00:09]} 61. a5 {[%clk 0:00:24]}  Bc5 {[%clk 0:00:09]} 62. Kd1 {[%clk 0:00:23]}  Kd3 {[%clk 0:00:09]} 63. a6 {[%clk 0:00:22]}  Bb6 {[%clk 0:00:09]} 64. Bg5 {[%clk 0:00:20]}  Bf2 {[%clk 0:00:08]} 65. Bf4 {[%clk 0:00:17]}  Ba7 {[%clk 0:00:07]} 66. Bg3 {[%clk 0:00:18]}  Kc4 {[%clk 0:00:05]} 67. Ke2 {[%clk 0:00:18]}  Kb5 {[%clk 0:00:05]} 68. Bf2 {[%clk 0:00:17]}  Kxa6 {[%clk 0:00:05]} 69. Bxa7 {[%clk 0:00:17]}  Kxa7 {[%clk 0:00:06]} 70. Ke3 {[%clk 0:00:18]} 1-0


[Site "https://www.chess.com"]

[Event "Titled Tuesday Blitz March 14 Early 2023"]
[White "Erigaisi Arjun"]
[Black "Martinez Alcantara, Jose Eduardo"]
[WhiteFideId "35009192"]
[BlackFideId "3805662"]
[WhiteElo "2737"]
[BlackElo "2712"]
[Result "1/2-1/2"]
[Round "07"]
[TimeControl "180+2"]
[Date "2023.03.14"]
[WhiteClock "0:00:13"]
[BlackClock "0:00:11"]

1. c4 {[%clk 0:03:00]}  e6 {[%clk 0:02:58]} 2. Nc3 {[%clk 0:03:00]}  d5 {[%clk 0:02:57]} 3. d4 {[%clk 0:03:01]}  a6 {[%clk 0:02:56]} 4. cxd5 {[%clk 0:02:59]}  exd5 {[%clk 0:02:57]} 5. Nf3 {[%clk 0:02:59]}  Nf6 {[%clk 0:02:57]} 6. Bg5 {[%clk 0:03:00]}  Be6 {[%clk 0:02:57]} 7. e3 {[%clk 0:03:00]}  Nbd7 {[%clk 0:02:57]} 8. Bd3 {[%clk 0:03:00]}  Bd6 {[%clk 0:02:57]} 9. O-O {[%clk 0:02:59]}  c6 {[%clk 0:02:57]} 10. Ne2 {[%clk 0:02:58]}  h6 {[%clk 0:02:56]} 11. Bf4 {[%clk 0:02:58]}  Qb8 {[%clk 0:02:55]} 12. h3 {[%clk 0:02:56]}  O-O {[%clk 0:02:55]} 13. b4 {[%clk 0:02:55]}  Bxf4 {[%clk 0:02:46]} 14. Nxf4 {[%clk 0:02:56]}  Qd6 {[%clk 0:02:47]} 15. Qb3 {[%clk 0:02:51]}  b5 {[%clk 0:02:36]} 16. Nxe6 {[%clk 0:02:36]}  Qxe6 {[%clk 0:02:28]} 17. a4 {[%clk 0:02:28]}  Nb6 {[%clk 0:02:27]} 18. axb5 {[%clk 0:02:27]}  axb5 {[%clk 0:02:28]} 19. Qc3 {[%clk 0:02:22]}  Nc4 {[%clk 0:02:23]} 20. Ne5 {[%clk 0:02:17]}  Nd7 {[%clk 0:02:00]} 21. Rxa8 {[%clk 0:02:14]}  Rxa8 {[%clk 0:02:01]} 22. Ra1 {[%clk 0:02:15]}  Rc8 {[%clk 0:01:58]} 23. Nf3 {[%clk 0:01:53]}  Ndb6 {[%clk 0:01:40]} 24. Ra7 {[%clk 0:01:52]}  g6 {[%clk 0:01:34]} 25. h4 {[%clk 0:01:38]}  Re8 {[%clk 0:01:29]} 26. h5 {[%clk 0:01:18]}  g5 {[%clk 0:01:26]} 27. Bc2 {[%clk 0:01:08]}  Nd7 {[%clk 0:01:18]} 28. Ne5 {[%clk 0:00:43]}  Ndxe5 {[%clk 0:01:06]} 29. dxe5 {[%clk 0:00:44]}  Nxe5 {[%clk 0:01:06]} 30. Bb1 {[%clk 0:00:38]}  Qg4 {[%clk 0:00:47]} 31. Qc2 {[%clk 0:00:35]}  Nf3+ {[%clk 0:00:41]} 32. Kf1 {[%clk 0:00:35]}  Qc4+ {[%clk 0:00:42]} 33. Qxc4 {[%clk 0:00:36]}  Nd2+ {[%clk 0:00:42]} 34. Ke2 {[%clk 0:00:37]}  Nxc4 {[%clk 0:00:43]} 35. Bf5 {[%clk 0:00:32]}  Re5 {[%clk 0:00:28]} 36. Bd7 {[%clk 0:00:30]}  d4 {[%clk 0:00:28]} 37. Bxc6 {[%clk 0:00:16]}  dxe3 {[%clk 0:00:28]} 38. f3 {[%clk 0:00:15]}  Nd6 {[%clk 0:00:29]} 39. g4 {[%clk 0:00:14]}  Kf8 {[%clk 0:00:25]} 40. Rd7 {[%clk 0:00:14]}  Re6 {[%clk 0:00:23]} 41. Bd5 {[%clk 0:00:14]}  Rf6 {[%clk 0:00:19]} 42. Kxe3 {[%clk 0:00:15]}  Ke8 {[%clk 0:00:19]} 43. Rc7 {[%clk 0:00:14]}  Rf4 {[%clk 0:00:19]} 44. Bc6+ {[%clk 0:00:13]}  Kf8 {[%clk 0:00:19]} 45. Bd5 {[%clk 0:00:10]}  Ke8 {[%clk 0:00:17]} 46. Ra7 {[%clk 0:00:08]}  Rxb4 {[%clk 0:00:11]} 47. Ra8+ {[%clk 0:00:08]}  Ke7 {[%clk 0:00:11]} 48. Rh8 {[%clk 0:00:09]}  Ra4 {[%clk 0:00:05]} 49. Rxh6 {[%clk 0:00:09]}  b4 {[%clk 0:00:05]} 50. Rh8 {[%clk 0:00:08]}  Ra3+ {[%clk 0:00:06]} 51. Kf2 {[%clk 0:00:08]}  Ra5 {[%clk 0:00:05]} 52. Bb3 {[%clk 0:00:06]}  Ra3 {[%clk 0:00:04]} 53. h6 {[%clk 0:00:04]}  Kf6 {[%clk 0:00:04]} 54. Bd5 {[%clk 0:00:03]}  Kg6 {[%clk 0:00:03]} 55. Be4+ {[%clk 0:00:02]}  Nxe4+ {[%clk 0:00:03]} 56. fxe4 {[%clk 0:00:03]}  b3 {[%clk 0:00:03]} 57. e5 {[%clk 0:00:03]}  Ra2+ {[%clk 0:00:03]} 58. Kf3 {[%clk 0:00:03]}  Ra1 {[%clk 0:00:04]} 59. Rb8 {[%clk 0:00:03]}  Ra3 {[%clk 0:00:04]} 60. Rb6+ {[%clk 0:00:04]}  Kh7 {[%clk 0:00:05]} 61. Ke4 {[%clk 0:00:04]}  b2 {[%clk 0:00:05]} 62. Kf5 {[%clk 0:00:05]}  Ra1 {[%clk 0:00:04]} 63. Rxb2 {[%clk 0:00:04]}  Kxh6 {[%clk 0:00:05]} 64. Rb6+ {[%clk 0:00:04]}  Kg7 {[%clk 0:00:06]} 65. Kxg5 {[%clk 0:00:04]}  Rf1 {[%clk 0:00:07]} 66. Rf6 {[%clk 0:00:04]}  Re1 {[%clk 0:00:07]} 67. Rf5 {[%clk 0:00:04]}  Rxe5 {[%clk 0:00:05]} 68. Rxe5 {[%clk 0:00:04]}  f6+ {[%clk 0:00:05]} 69. Kf5 {[%clk 0:00:04]}  fxe5 {[%clk 0:00:06]} 70. Kxe5 {[%clk 0:00:05]}  Kg6 {[%clk 0:00:07]} 71. Kf4 {[%clk 0:00:06]}  Kf6 {[%clk 0:00:07]} 72. g5+ {[%clk 0:00:07]}  Kg6 {[%clk 0:00:08]} 73. Kg4 {[%clk 0:00:08]}  Kg7 {[%clk 0:00:09]} 74. Kf5 {[%clk 0:00:09]}  Kf7 {[%clk 0:00:09]} 75. g6+ {[%clk 0:00:10]}  Kg7 {[%clk 0:00:10]} 76. Kg5 {[%clk 0:00:10]}  Kg8 {[%clk 0:00:10]} 77. Kf6 {[%clk 0:00:11]}  Kf8 {[%clk 0:00:11]} 78. g7+ {[%clk 0:00:12]}  Kg8 {[%clk 0:00:11]} 79. Kg6 {[%clk 0:00:13]} 1/2-1/2


[Site "https://www.chess.com"]

[Event "Titled Tuesday Blitz March 14 Early 2023"]
[White "Makhnev, Denis"]
[Black "Pakleza, Zbigniew"]
[WhiteFideId "13707647"]
[BlackFideId "1119290"]
[WhiteElo "2525"]
[BlackElo "2410"]
[Result "1-0"]
[Round "07"]
[TimeControl "180+2"]
[Date "2023.03.14"]
[WhiteClock "0:00:04"]
[BlackClock "0:00:01"]

1. d4 {[%clk 0:03:00]}  d6 {[%clk 0:02:39]} 2. Nf3 {[%clk 0:03:00]}  Bg4 {[%clk 0:02:39]} 3. e4 {[%clk 0:02:59]}  Nf6 {[%clk 0:02:38]} 4. Qe2 {[%clk 0:02:59]}  c6 {[%clk 0:02:37]} 5. h3 {[%clk 0:02:58]}  Bh5 {[%clk 0:02:38]} 6. Nc3 {[%clk 0:02:52]}  e6 {[%clk 0:02:37]} 7. g4 {[%clk 0:02:51]}  Bg6 {[%clk 0:02:38]} 8. h4 {[%clk 0:02:51]}  h5 {[%clk 0:02:37]} 9. g5 {[%clk 0:02:49]}  Nfd7 {[%clk 0:02:38]} 10. Bf4 {[%clk 0:02:43]}  Be7 {[%clk 0:02:37]} 11. O-O-O {[%clk 0:02:37]}  O-O {[%clk 0:02:33]} 12. Bh3 {[%clk 0:02:36]}  d5 {[%clk 0:02:32]} 13. Ne5 {[%clk 0:02:02]}  Nxe5 {[%clk 0:02:31]} 14. Bxe5 {[%clk 0:02:03]}  Bb4 {[%clk 0:02:23]} 15. f4 {[%clk 0:02:00]}  Bxc3 {[%clk 0:02:00]} 16. f5 {[%clk 0:02:00]}  exf5 {[%clk 0:01:37]} 17. exf5 {[%clk 0:01:59]}  Bb4 {[%clk 0:01:26]} 18. fxg6 {[%clk 0:01:43]}  fxg6 {[%clk 0:01:27]} 19. Qd3 {[%clk 0:01:38]}  Kh7 {[%clk 0:01:22]} 20. Qb3 {[%clk 0:01:34]}  Qb6 {[%clk 0:00:47]} 21. c3 {[%clk 0:00:51]}  Be7 {[%clk 0:00:44]} 22. Qc2 {[%clk 0:00:51]}  Qd8 {[%clk 0:00:35]} 23. Rhe1 {[%clk 0:00:43]}  Nd7 {[%clk 0:00:34]} 24. Bh2 {[%clk 0:00:42]}  Rf3 {[%clk 0:00:24]} 25. Bg2 {[%clk 0:00:31]}  Rf5 {[%clk 0:00:18]} 26. Bf1 {[%clk 0:00:31]}  Bxg5+ {[%clk 0:00:11]} 27. hxg5 {[%clk 0:00:29]}  Qxg5+ {[%clk 0:00:11]} 28. Kb1 {[%clk 0:00:29]}  Raf8 {[%clk 0:00:12]} 29. Bd3 {[%clk 0:00:27]}  Rf2 {[%clk 0:00:12]} 30. Re2 {[%clk 0:00:28]}  Qg2 {[%clk 0:00:08]} 31. Bg1 {[%clk 0:00:13]}  Rxe2 {[%clk 0:00:07]} 32. Qxe2 {[%clk 0:00:14]}  Qxe2 {[%clk 0:00:07]} 33. Bxe2 {[%clk 0:00:15]}  Nf6 {[%clk 0:00:08]} 34. Bh2 {[%clk 0:00:15]}  Ne4 {[%clk 0:00:07]} 35. Be5 {[%clk 0:00:13]}  g5 {[%clk 0:00:07]} 36. Bxh5 {[%clk 0:00:12]}  Rf2 {[%clk 0:00:06]} 37. Kc1 {[%clk 0:00:11]}  g6 {[%clk 0:00:05]} 38. Bg4 {[%clk 0:00:10]}  Rg2 {[%clk 0:00:05]} 39. Rh1+ {[%clk 0:00:09]}  Kg8 {[%clk 0:00:05]} 40. Bf3 {[%clk 0:00:08]}  Rf2 {[%clk 0:00:05]} 41. Bxe4 {[%clk 0:00:07]}  dxe4 {[%clk 0:00:06]} 42. Re1 {[%clk 0:00:08]}  Kf7 {[%clk 0:00:03]} 43. Rxe4 {[%clk 0:00:08]}  Rg2 {[%clk 0:00:03]} 44. Bd6 {[%clk 0:00:07]}  g4 {[%clk 0:00:03]} 45. Re3 {[%clk 0:00:06]}  Kf6 {[%clk 0:00:02]} 46. c4 {[%clk 0:00:06]}  Kf5 {[%clk 0:00:02]} 47. d5 {[%clk 0:00:07]}  cxd5 {[%clk 0:00:03]} 48. cxd5 {[%clk 0:00:07]}  Rf2 {[%clk 0:00:02]} 49. Bg3 {[%clk 0:00:07]}  Rf1+ {[%clk 0:00:02]} 50. Kc2 {[%clk 0:00:07]}  Rh1 {[%clk 0:00:02]} 51. d6 {[%clk 0:00:08]}  Rh8 {[%clk 0:00:03]} 52. Kd3 {[%clk 0:00:05]}  g5 {[%clk 0:00:03]} 53. Kd4 {[%clk 0:00:05]}  Rc8 {[%clk 0:00:02]} 54. Kd5 {[%clk 0:00:04]}  Rc2 {[%clk 0:00:01]} 55. Rd3 {[%clk 0:00:04]} 1-0


[Site "https://www.chess.com"]

[Event "Titled Tuesday Blitz March 14 Early 2023"]
[White "Reprintsev, Alexander"]
[Black "Zhigalko, Sergei"]
[WhiteFideId "14100541"]
[BlackFideId "13502956"]
[WhiteElo "2229"]
[BlackElo "2626"]
[Result "0-1"]
[Round "07"]
[TimeControl "180+2"]
[Date "2023.03.14"]
[WhiteClock "0:00:13"]
[BlackClock "0:00:03"]

1. e4 {[%clk 0:02:52]}  c5 {[%clk 0:03:00]} 2. b3 {[%clk 0:02:52]}  Nf6 {[%clk 0:03:00]} 3. e5 {[%clk 0:02:51]}  Nd5 {[%clk 0:03:00]} 4. Nc3 {[%clk 0:02:51]}  Nc7 {[%clk 0:02:59]} 5. d4 {[%clk 0:02:51]}  cxd4 {[%clk 0:02:57]} 6. Qxd4 {[%clk 0:02:51]}  Nc6 {[%clk 0:02:58]} 7. Qe3 {[%clk 0:02:51]}  d5 {[%clk 0:02:52]} 8. exd6 {[%clk 0:02:51]}  Qxd6 {[%clk 0:02:52]} 9. Bb2 {[%clk 0:02:50]}  Nb4 {[%clk 0:02:43]} 10. Qd2 {[%clk 0:02:49]}  Qxd2+ {[%clk 0:02:42]} 11. Kxd2 {[%clk 0:02:49]}  Bf5 {[%clk 0:02:42]} 12. Nb5 {[%clk 0:01:53]}  O-O-O+ {[%clk 0:02:36]} 13. Kc3 {[%clk 0:01:52]}  Ncd5+ {[%clk 0:02:08]} 14. Kd2 {[%clk 0:01:45]}  Nxc2 {[%clk 0:01:47]} 15. Rc1 {[%clk 0:01:41]}  Nb4+ {[%clk 0:01:48]} 16. Ke2 {[%clk 0:01:35]}  Bd3+ {[%clk 0:01:15]} 17. Kf3 {[%clk 0:01:32]}  Bxf1 {[%clk 0:01:14]} 18. Rxf1 {[%clk 0:01:32]}  a6 {[%clk 0:01:13]} 19. Na3 {[%clk 0:01:25]}  Nxa3 {[%clk 0:00:53]} 20. Bxa3 {[%clk 0:01:25]}  Nc6 {[%clk 0:00:53]} 21. Nh3 {[%clk 0:01:22]}  e5 {[%clk 0:00:47]} 22. Bxf8 {[%clk 0:01:19]}  Rhxf8 {[%clk 0:00:48]} 23. Rd1 {[%clk 0:01:19]}  f6 {[%clk 0:00:46]} 24. g4 {[%clk 0:01:19]}  Rxd1 {[%clk 0:00:43]} 25. Rxd1 {[%clk 0:01:18]}  Rd8 {[%clk 0:00:41]} 26. Rc1 {[%clk 0:01:15]}  Rd3+ {[%clk 0:00:37]} 27. Kg2 {[%clk 0:01:14]}  Kd7 {[%clk 0:00:38]} 28. Rc2 {[%clk 0:01:14]}  Nd4 {[%clk 0:00:37]} 29. Rb2 {[%clk 0:01:13]}  a5 {[%clk 0:00:33]} 30. f4 {[%clk 0:01:13]}  Nc6 {[%clk 0:00:19]} 31. g5 {[%clk 0:01:11]}  e4 {[%clk 0:00:11]} 32. gxf6 {[%clk 0:01:06]}  gxf6 {[%clk 0:00:12]} 33. Nf2 {[%clk 0:01:05]}  Rd4 {[%clk 0:00:12]} 34. f5 {[%clk 0:01:04]}  Ne7 {[%clk 0:00:05]} 35. Re2 {[%clk 0:01:03]}  e3 {[%clk 0:00:04]} 36. Rxe3 {[%clk 0:01:00]}  Nxf5 {[%clk 0:00:04]} 37. Re2 {[%clk 0:00:51]}  h5 {[%clk 0:00:04]} 38. Ne4 {[%clk 0:00:50]}  Nh4+ {[%clk 0:00:04]} 39. Kg3 {[%clk 0:00:46]}  Nf5+ {[%clk 0:00:04]} 40. Kg2 {[%clk 0:00:47]}  Kc6 {[%clk 0:00:03]} 41. Nxf6 {[%clk 0:00:45]}  h4 {[%clk 0:00:03]} 42. Kf3 {[%clk 0:00:24]}  Rb4 {[%clk 0:00:03]} 43. Re4 {[%clk 0:00:20]}  Nd4+ {[%clk 0:00:03]} 44. Ke3 {[%clk 0:00:20]}  Nc2+ {[%clk 0:00:03]} 45. Kf3 {[%clk 0:00:20]}  Nd4+ {[%clk 0:00:02]} 46. Ke3 {[%clk 0:00:20]}  Nc2+ {[%clk 0:00:03]} 47. Kf3 {[%clk 0:00:21]}  a4 {[%clk 0:00:02]} 48. bxa4 {[%clk 0:00:18]}  Rb2 {[%clk 0:00:02]} 49. Rxh4 {[%clk 0:00:17]}  Rxa2 {[%clk 0:00:03]} 50. Ne4 {[%clk 0:00:17]}  Rxa4 {[%clk 0:00:02]} 51. Rh6+ {[%clk 0:00:17]}  Kc7 {[%clk 0:00:02]} 52. Nc5 {[%clk 0:00:16]}  Nd4+ {[%clk 0:00:02]} 53. Kf2 {[%clk 0:00:13]}  Ra2+ {[%clk 0:00:02]} 54. Ke3 {[%clk 0:00:13]}  Nf5+ {[%clk 0:00:02]} 55. Kf4 {[%clk 0:00:10]}  Nxh6 {[%clk 0:00:03]} 56. h4 {[%clk 0:00:11]}  Rc2 {[%clk 0:00:03]} 57. Ne6+ {[%clk 0:00:11]}  Kb6 {[%clk 0:00:03]} 58. Nd4 {[%clk 0:00:12]}  Rc4 {[%clk 0:00:02]} 59. Ke5 {[%clk 0:00:13]}  Rxd4 {[%clk 0:00:03]} 0-1


[Site "https://www.chess.com"]